Cogmind - Beta 15 @@@ ROGUE MODE // 2025.06.26 @ 20:11:57 Player: Ilbko Result: Destroyed by G-47 Trooper with Particle Gun Performance ------------- Evolutions (2) 1000 Regions Visited (3) 600 Robots Destroyed (33) 165 Value Destroyed (1053) 1053 Prototype IDs (0) 0 Alien Tech Used (0) 0 Bonus (0) 0 TOTAL SCORE: 2818 Bonus ------- None Cogmind --------- Core Integrity 0/550 Matter 231/300 Energy 235/290 System Corruption 7% Temperature Danger (446) Movement Core (300) Ox5 Location -8/Materials Parts ------- > --- POWER (1) -------- Improved Deuterium Engine > --- PROPULSION (3) --- (None) > --- UTILITY (5) ------ Small Storage Unit Advanced Visual Processing Unit Armor Integrity Analyzer > --- WEAPON (2) ------- Medium Laser > --- INVENTORY (8) ---- Ion Engine Compact Wheel Compact Wheel High-capacity Matter Pod (200) Peak State ------------ > --- POWER ------------ Improved Deuterium Engine > --- PROPULSION ------- Armored Treads > --- UTILITY ---------- Improved Cooling System Small Storage Unit Advanced Visual Processing Unit Improved Terrain Scanner Armor Integrity Analyzer > --- WEAPON ----------- Ion Cannon Gauss Rifle > --- INVENTORY -------- Ion Engine Light Nuclear Core Compact Wheel Compact Wheel High-capacity Matter Pod Medium Laser Gauss Rifle [Rating: 30] Favorites ----------- Power Ion Engine Engine Ion Engine Power Core Light Nuclear Core Propulsion Light Treads Treads Light Treads Hover Unit Hover Unit Utility Small Storage Unit Device Improved Terrain Scanner Storage Small Storage Unit Processor Armor Integrity Analyzer Protection Light Armor Plating Weapon Light Assault Rifle Energy Gun Medium Laser Energy Cannon Ion Cannon Ballistic Gun Light Assault Rifle Launcher Grenade Launcher Build | -11 -10 -10 -8 ------- Run | Yrd Mat Sub Mat Slots Evolved 4 | . . . 4 Power . | . . . . Propulsion 1 | . . . 1 Utility 3 | . . . 3 Weapon . | . . . . Parts Attached 27 | 6 6 . 15 Power 5 | 1 1 . 3 Engine 4 | 1 1 . 2 Core 1 | . . . 1 Reactor . | . . . . Propulsion 4 | 2 1 . 1 Treads 3 | 2 . . 1 Leg . | . . . . Wheel . | . . . . Hover 1 | . 1 . . Flight . | . . . . Utility 11 | 1 3 . 7 Device 4 | . . . 4 Storage 3 | 1 1 . 1 Processor 2 | . . . 2 Hackware . | . . . . Protection 2 | . 2 . . Artifact . | . . . . Weapon 7 | 2 1 . 4 Energy Gun 1 | 1 . . . Energy Cannon 1 | . . . 1 Ballistic Gun 4 | 1 . . 3 Ballistic Cannon . | . . . . Launcher 1 | . 1 . . Special Weapon . | . . . . Impact Weapon . | . . . . Slashing Weapon . | . . . . Piercing Weapon . | . . . . Special Melee Weapon . | . . . . Unidentified Prototypes . | . . . . Parts Lost 14 | . . . 14 Power 1 | . . . 1 Propulsion 3 | . . . 3 Utility 5 | . . . 5 Weapon 5 | . . . 5 Highest Loss Streak 8 | . . . 8 To Critical Strikes . | . . . . Average Backups 6 | 2 7 8 6 Power 1 | . 1 1 1 Propulsion 2 | 1 2 2 2 Utility 1 | . 2 4 1 Weapon 1 | . 1 1 1 Tool/Special . | . . . . Unused Backups 5 | . 3 . 2 Power 1 | . 1 . . Propulsion 2 | . . . 2 Utility 1 | . 1 . . Weapon 1 | . 1 . . Tool/Special . | . . . . Average Slot Usage (%) 88 | . 98 100 79 Engine 11 | . 14 14 8 Treads 19 | . 28 28 12 Device 9 | . . . 18 Storage 12 | . 16 14 9 Processor 5 | . . . 9 Protection 6 | . 10 14 3 Energy Gun 3 | . 9 . . Energy Cannon 3 | . . . 7 Ballistic Gun 10 | . 14 14 7 Launcher 3 | . 4 14 2 Peak Build Rating 30 | 6 8 8 30 Average Rating 15 | 5 7 8 24 On Entrance 5 | . 6 8 8 Naked Turns . | . . . . Heaviest Build 32 | 13 17 17 32 Greatest Support 40 | 40 40 40 40 Greatest Overweight (x) 6 | . . . 6 Average Overweight (x) . | . . . . Largest Inventory Capacity 8 | 8 8 8 8 Average Capacity 7 | 7 8 8 8 Most Carried 8 | 4 8 8 8 Average Carried 6 | 2 7 8 6 Final Capacity 8 | 8 8 8 8 Final Carried 8 | 4 8 8 4 Class Distribution -------------------- 63% | Mutant 36% | Scavenger-Mutant Dominant Class ---------------- Mutant | -10/Materials Mutant | -10/Subcaves Scavenger-Mutant | -8/Materials Resources | -11 -10 -10 -8 ----------- Run | Yrd Mat Sub Mat Matter Collected 881 | 245 321 16 299 Remotely . | . . . . Salvage Created 1288 | . 346 15 927 Parts 66 | . 25 3 38 Haulers Intercepted . | . . . . Recyclers Shooed 4 | . 1 . 3 Parts Field Recycled . | . . . . Retrieved Matter . | . . . . Parts Self-Destructed 7 | . . 7 . Prevented . | . . . . Kills | -11 -10 -10 -8 ------- Run | Yrd Mat Sub Mat Combat Hostiles Destroyed 21 | . 7 2 12 Guns 7 | . 4 . 3 Cannons 7 | . . . 7 AOE 6 | . 3 2 1 Classes Destroyed 10 | . 4 1 5 Worker 1 | . . . 1 Builder 1 | . . . 1 Tunneler 1 | . 1 . . Recycler 6 | . 1 . 5 Operator 1 | . . . 1 Watcher 2 | . 2 . . Swarmer 2 | . . 2 . Grunt 14 | . 7 . 7 Sentry 1 | . . . 1 Specialist 4 | . . . 4 Best Kill Streak 7 | . 3 2 7 Combat Bots Only 5 | . 3 2 5 Max Kills in Single Turn 2 | . 2 2 1 Gunslinging . | . . . . Exploded 2 | . 2 2 1 Melee . | . . . . Uniques/NPCs Destroyed . | . . . . Combat | -11 -10 -10 -8 -------- Run | Yrd Mat Sub Mat Hostile Shots Fired 171 | . 15 4 152 Missed 41 | . 6 1 34 Hits 130 | . 9 3 118 Melee 5 | . . . 5 Projectile 125 | . 9 3 113 Critical Strikes 6 | . . . 6 Damage Taken 2547 | . 148 37 2362 Core 573 | . 10 12 551 Absorbed by Shields . | . . . . Redirected to Shielding 2 | . 2 . . Regen/Repaired (Parts) 71 | . 71 . . Core Remaining (%) 95 | 100 . 91 . Volleys Fired 101 | . 19 3 79 Largest 2 | . 2 1 2 Hottest 90 | . 70 30 90 Shots Fired 151 | . 30 3 118 Gun 66 | . 25 1 40 Cannon 73 | . . . 73 Launcher 12 | . 5 2 5 Special . | . . . . Kinetic 54 | . 15 1 38 Thermal 85 | . 10 . 75 Explosive 12 | . 5 2 5 Electromagnetic . | . . . . Robot Hit Streak 15 | . 9 1 15 Robot Miss Streak 5 | . 2 1 5 Penetration Max 1 | . . . 1 Secondary Targets 1 | . 1 . . Max Gunslinging Chain 1 | . 1 . . Shots Hit Robots 89 | . 18 1 70 Core Hits 54 | . 20 2 32 Critical Kills 2 | . . . 2 Critical Parts Destroyed . | . . . . Critical Strikes 3 | . . . 3 Burn 1 | . . . 1 Meltdown 1 | . . . 1 Destroy 1 | . . . 1 Melee Attacks . | . . . . Impact . | . . . . Slashing . | . . . . Piercing . | . . . . Sneak Attacks . | . . . . Combat Hostiles . | . . . . Follow-up Attacks . | . . . . Damage Inflicted 2394 | . 440 138 1816 Guns 584 | . 166 . 418 Cannons 1082 | . . . 1082 Explosions 725 | . 274 138 313 Melee . | . . . . Ramming 3 | . . . 3 Kinetic 457 | . 65 . 392 Thermal 1209 | . 101 . 1108 Explosive 725 | . 274 138 313 Electromagnetic . | . . . . Impact . | . . . . Slashing . | . . . . Piercing . | . . . . Highest Corruption 7 | . . . 7 Average Corruption 7 | . . . 7 Corruption Purged . | . . . . Corruption Blocked . | . . . . Effects 14 | . . . 14 Message Errors 3 | . . . 3 Matter Fused 3 | . . . 3 Heat Flow Errors 1 | . . . 1 Energy Discharges 2 | . . . 2 Parts Fused 1 | . . . 1 Data Loss (minor) 2 | . . . 2 Data Loss (major) 1 | . . . 1 Weapon Failures 1 | . . . 1 Overload Shots . | . . . . Overflow Damage 67 | . . 5 62 Projectiles 49 | . . . 49 Explosions 18 | . . 5 13 Melee . | . . . . Knockbacks . | . . . . Impact . | . . . . Kinetic . | . . . . Secondary . | . . . . Self-Inflicted Damage 114 | . 25 17 72 Shots 6 | . 2 1 3 Rammed 1 | . . . 1 Targets Rammed 1 | . . . 1 Kicked . | . . . . Crushed . | . . . . Highest Temperature 432 | . 189 . 432 Average Temperature 160 | . 84 . 204 Received Heat Transfer 1032 | . 69 . 963 Effects 3 | . . . 3 Shutdowns 2 | . . . 2 Short Circuit 1 | . . . 1 Siege Activations . | . . . . Martial Activations . | . . . . Shielding Activations . | . . . . Robots Disrupted . | . . . . Combat Hostiles . | . . . . Robots Corrupted . | . . . . Combat Hostiles . | . . . . Parts Fried . | . . . . Impact Corruptions . | . . . . Robots Melted 1 | . . . 1 Combat Hostiles 1 | . . . 1 Parts Melted 2 | . . . 2 Heat Transferred 2183 | . 296 . 1887 Parts Sabotaged . | . . . . Parts Stolen . | . . . . Parts Stripped . | . . . . Power Chain Reactions . | . . . . Alert | -11 -10 -10 -8 ------- Run | Yrd Mat Sub Mat Maximum Alert Level . | . . . . Low Security (%) 100 | 100 100 . 100 Level 1 . | . . . . Level 2 . | . . . . Level 3 . | . . . . Level 4 . | . . . . Level 5 . | . . . . High Security . | . . . . Max Security . | . . . . Peak Influence 156 | . 107 . 156 Initial 17 | . . . 17 Average 49 | . 35 . 66 Influence Increases 741 | . 250 50 441 Destroy 0b10 Robot/C 420 | . 140 40 240 Destroy 0b10 Robot/NC 60 | . 20 . 40 Destroy Leader 94 | . 34 10 50 Successful Hack 17 | . 17 . . Disable Machine 75 | . 15 . 60 Destroy Structure 60 | . 24 . 36 Lose Combat Pursuer 15 | . . . 15 Influence Decreases 731 | . 202 64 465 Entered New Map 41 | . . 24 17 Time Decay 576 | . 202 40 334 Lost Part 114 | . . . 114 Squads Dispatched 7 | . 1 . 6 Investigation 1 | . 1 . . Extermination . | . . . . Reinforcement 6 | . . . 6 Assault . | . . . . Garrison . | . . . . Intercept . | . . . . Searches Triggered . | . . . . Construction Impeded 1 | . . . 1 Haulers Reinforced . | . . . . Active Scanning Responses . | . . . . Cargo Convoy Interrupts . | . . . . Stealth | -11 -10 -10 -8 --------- Run | Yrd Mat Sub Mat Distress Signals 1 | . . . 1 Communications Jammed . | . . . . Distress Signals . | . . . . Times Spotted 40 | . 9 3 28 Peak Tracking Total 6 | . 3 3 6 Tactical Retreats 1 | . . . 1 Traps | -11 -10 -10 -8 ------- Run | Yrd Mat Sub Mat Traps Triggered . | . . . . Indirectly . | . . . . Trap Hack Attempts . | . . . . Triggered . | . . . . Disarmed . | . . . . Reprogrammed . | . . . . Reused . | . . . . Traps Extracted . | . . . . Installed . | . . . . Triggered . | . . . . Machines | -11 -10 -10 -8 ---------- Run | Yrd Mat Sub Mat Machines Disabled 5 | . 1 . 4 Max in Single Turn 1 | . 1 . 1 Machines Repaired . | . . . . Machines Dismantled . | . . . . Machines Sabotaged . | . . . . Overloaded Fab Kills . | . . . . Hacking | -11 -10 -10 -8 --------- Run | Yrd Mat Sub Mat Machines Accessed 7 | . 6 . 1 Terminals 4 | . 3 . 1 Fabricators . | . . . . Repair Stations 1 | . 1 . . Recycling Units 2 | . 2 . . Scanalyzers . | . . . . Garrison Access . | . . . . Total Hacks 18 | . 17 . 1 Successful 12 | . 11 . 1 Failed 6 | . 6 . . Catastrophic 1 | . 1 . . Database Lockouts . | . . . . Manual 8 | . 7 . 1 Terminals 9 | . 8 . 1 Fabricators . | . . . . Repair Stations 3 | . 3 . . Recycling Units 6 | . 6 . . Scanalyzers . | . . . . Garrison Access . | . . . . Terminal Hacks 4 | . 3 . 1 Robot Analysis 3 | . 3 . . Recall Reinforcements 1 | . . . 1 Fabricator Hacks . | . . . . Repair Station Hacks 3 | . 3 . . Scan Component 2 | . 2 . . Repair 1 | . 1 . . Recycling Unit Hacks 5 | . 5 . . Process 3 | . 3 . . Retrieve Matter 2 | . 2 . . Scanalyzer . | . . . . Garrison Access Hacks . | . . . . Unauthorized Hacks . | . . . . Terminals . | . . . . Fabricators . | . . . . Repair Stations . | . . . . Recycling Units . | . . . . Scanalyzers . | . . . . Garrison Access . | . . . . Data Cores Recovered . | . . . . Used . | . . . . Hacking Detections 6 | . 5 . 1 Full Trace Events 1 | . 1 . . Feedback Events . | . . . . Feedback Blocked . | . . . . Robot Schematics Acquired . | . . . . Robots Built . | . . . . Authchips . | . . . . Time . | . . . . Total Robot Build Rating . | . . . . Part Schematics Acquired . | . . . . Parts Built . | . . . . Authchips . | . . . . Time . | . . . . Total Part Build Rating . | . . . . Parts Repaired 1 | . 1 . . Time 26 | . 26 . . Parts Recycled . | . . . . Recycled Matter 79 | . 79 . . Retrieved Matter 79 | . 79 . . Retrieved Components . | . . . . Parts Scanalyzed . | . . . . Part Schematics Acquired . | . . . . Parts Damaged . | . . . . Bothacking | -11 -10 -10 -8 ------------ Run | Yrd Mat Sub Mat Used RIF Installer . | . . . . Robots Hacked . | . . . . Non-combat . | . . . . Combat . | . . . . Robot Hacks Applied . | . . . . Relay Couplers Released . | . . . . Fabnet Peak Effective % . | . . . . Robots Rewired . | . . . . Allies Hacked . | . . . . Hacks Repelled . | . . . . Allies | -11 -10 -10 -8 -------- Run | Yrd Mat Sub Mat Total Allies . | . . . . Largest Group . | . . . . Highest-Rated Group . | . . . . Highest-Rated Ally . | . . . . Total Orders . | . . . . Ally Attacks . | . . . . Total Damage . | . . . . Kills . | . . . . Allies Corrupted . | . . . . Allies Melted 1 | . . 1 . Intel | -11 -10 -10 -8 ------- Run | Yrd Mat Sub Mat Active Infowar (turns) 915 | . . . 915 Optics 486 | . . . 486 Terrain 913 | . . . 913 Robot Analysis Total 3 | . 3 . . Derelict Logs Recovered . | . . . . Drone Launches . | . . . . Drone Recoveries . | . . . . Exploration | -11 -10 -10 -8 ------------- Run | Yrd Mat Sub Mat Turns Passed 1836 | 130 707 84 915 Spaces Moved 750 | 79 374 42 255 Core 9 | 8 . . 1 Treads 741 | 71 374 42 254 Legs . | . . . . Wheels . | . . . . Hover . | . . . . Flight . | . . . . Fastest Speed 50 | 50 160 160 160 Average Speed 170 | 148 160 160 195 Slowest Speed 350 | 160 160 160 350 Overloaded Moves . | . . . . Propulsion Burnouts . | . . . . Robots Hopped . | . . . . Potential Cave-ins . | . . . . Cave-ins Triggered 1 | . . . 1 Exploration Rate (%) 24 | 5 65 5 22 Regions Visited 3 Branch Regions 1 Pre-discovered Areas . | . . . . Known Exits Taken . | . . . . Unknown Exits Taken 3 | 1 1 1 . Scrap Searched . | . . . . Spaces Dug . | . . . . Terrain Destroyed 63 | . 22 6 35 Melee . | . . . . Projectile 6 | . . . 6 AOE 57 | . 22 6 29 Terrain Rammed . | . . . . Walls Destroyed . | . . . . Machines Disabled . | . . . . Actions | -11 -10 -10 -8 --------- Run | Yrd Mat Sub Mat Total 1149 | 89 454 56 550 Wait 235 | . 38 12 185 Move 747 | 78 373 41 255 Hop . | . . . . Pick Up 16 | 5 7 . 4 Fast Attach 12 | 5 2 . 5 Attach 13 | 1 2 . 10 Detach 2 | . 1 . 1 Swap 14 | . 8 . 6 Drop 8 | . 4 . 4 Fire 101 | . 19 3 79 Melee . | . . . . Ram . | . . . . Kick . | . . . . Crush 1 | . . . 1 Escape Stasis . | . . . . Rewire . | . . . . Trap . | . . . . Miscellaneous . | . . . . Route ------- -11/Scrapyard -10/Materials (discovered 3 exits: [*Mat x2] / [*Sub]) -10/Subcaves -8/Materials History --------- Turn | Location | Event 6 | -11/Scrapyard | Discovered new exit (range 15) 131 | -11/Scrapyard | Entered Materials 319 | -10/Materials | Build established: Mutant 552 | -10/Materials | Discovered new exit (range 16) 702 | -10/Materials | Repaired Lgt. Armor Plating 723 | -10/Materials | Discovered new exit (range 12) 728 | -10/Materials | Discovered new exit (range 16) 838 | -10/Materials | Entered Subcaves 839 | -10/Subcaves | Approached by a straggling Scientist 899 | -10/Subcaves | Discovered new exit (range 8) 922 | -10/Subcaves | Entered Materials 922 | -8/Materials | Evolved 4 slots: Propulsion x1, Utility x3 1329 | -8/Materials | Crushed by falling debris 1360 | -8/Materials | Lost 8 parts (1p2n4u1w) 1650 | -8/Materials | Build established: Scavenger-Mutant 1801 | -8/Materials | Core integrity fell below 50% 1827 | -8/Materials | Core integrity fell below 20% 1837 | -8/Materials | Destroyed by G-47 Trooper with Particle Gun Last Messages --------------- 01811_ Slug penetrates G-47 Trooper. 01816_ Arm. Treads destroyed. 01817_ Gauss Rifle destroyed. 01818_ Critical hit (Burn: +37). 01818_ Slug penetrates G-47 Trooper. 01823_ Power failure, Imp. Deuterium Engine shutdown. 01824_ R-06 Scavenger collects Melee Analysis Suite. 01825_ Gauss Rifle broken. 01825_ Overheating: Short circuit. 01827_ K-01 Serf collects debris. 01829_ Dropped Lgt. Nuclear Core. 01832_ Ion Cannon destroyed. 01833_ Power failure, Imp. Deuterium Engine shutdown. 01834_ Broken Gauss Rifle destroyed. 01834_ G-47 Trooper suffers critical hit (Burn). 01834_ G-47 Trooper destroyed. 01835_ Imp. Terrain Scanner destroyed. Map ----- +----------------------------------------------------+ | ?????????????????????????????????????????????????? | | ?????????????????????????????????????????????????? | | ?????????????????????????????????????????????????? | | ?????????????????????????????????????????????????? | | ?????????????????????????????????????????????????? | | ?????????????????????????????????????????????????? | | ???????????#???????????????????????????????????? | | ? ???????????????? ?????????????????????????? | | ???????????????? #????????????????????????? | | ??? ? ????????# #????????????????????????? | | ???????????????# #????? ??????????????????? | | "" ???? ??? ??????+ #? ????????? ???????????? | | "" ??????? ?? ????# #????????????????????????? | | "" ?#? ?? ??? ????# #????????????????????????? | | ##+#???######### ##?"?????????? #?????????? | | #?### ########### #### #??? | | "" ##?## #??? | | "" #??## """ +??? | | "" ##### " #??? | | ##??# "" ##"g########+##?#???????? | | ##### ##*% #????? ??????????? | | ####### ##= T" # ??? ??????????? | | " "" # % ## k #?? ?? ??????????? | | " " !!# "T" !## # ???? ??#?????? | | # " g%##*g #? ??? ?????????? | | ; *%!@% #? ???? ?????????? | | %#% *#########?? ?????????????? | | ### #######+#######???????? ? ?????????????? | | = = # ## ## ##??#????????????#??????????? | | ###%##### #?######??#?????????????????? | | ###+##### ###?# """ #???#?#?#???#?#???#?????????? | | ### # #?# #??## """ ###?????#????????#??????????? | | ###+##### ##?## """ #?###?##??#?#???#???????????? | | ?#=% [ # ##??# #???????#?#??#??????????????? | | ?# # ############?#?#??###????????#?????????? | | ?# +% !%%[!! %* +??? ???????????????????? | | ## ###########?##?#????? ????#??????????????? | | ?# "T" #?###?###???#????? ??"??##???????????????? | | ?# ]##???#????#?#?##???? ????????????????????? | | ?#########?#????##?#?#?????????"?????????????????? | | ??###?#?##??"" ?"????#???? ??????????????????????? | | ????#?#??? "???""???? ? ?????????????????????????? | | #?##???#????????"? #?? ??????????????????????????? | | ##?#?#????? ? ??? ?? ? ?????????????????????????? | | ###?????#? ????????? ????????? ??????????????????? | | ##????#?????????? ???? ??????????????????????????? | | ???????#???????? ????????????????????????????????? | | ?#????#????????????#?????????????????????????????? | | #?##?????????????????????????????????????????????? | | ?????????????????????????????????????????????????? | +----------------------------------------------------+ Best States ------------- Heat Dissipation 72 Energy Generation 16 Energy Capacity 290 Matter Stores 300 Matter Capacity 500 Sight Range 20 Terrain Scan Range 16 Terrain Scan Density 10 Armor Coverage 150 Core Shielding 20 Evasion (%) 40 Armor Integrity Analysis 30 Recoil Reduction 2 Item Schematics ----------------- None Robot Schematics ------------------ None Fabricated ------------ Nothing Repaired ---------- Lgt. Armor Plating | 21% | -10/Materials Alien Tech Used ----------------- None Achievements -------------- Unlikely Earthworm Challenges ------------ None Game ------ Seed BombardmentFieldHammer Manual? 0 Play Time 00:25:36 Cumulative 7.4 hours Start 2025.06.26 @ 19:47:16 End 2025.06.26 @ 20:11:57 Sessions 1 Manual Loads 0 Difficulty Rogue Special Mode None Game No. 10 Rogue 7 Adventurer 3 Explorer 0 Win Type - Total 0 Types 0/0/0/0/0/0/0/0/0/0 Lore% 10 Gallery% 13 Achievement% 16 Wizard Run 0 Options --------- Layout 1 ASCII 0 Keyboard 0 Movement Mouse Keybinds 0 Fullscreen 1 Font 24/Smallcaps Map View 50x35 Zoom Use 0% Tactical HUD 1 Map Filters NONE Filters NONE Steam 1 RUN: 610a91a5-f34c-434e-af57-941218e9c715